lending/lending_fUSD_20250917
["ID","MTS","AMOUNT","RATE_DAILY","PERIOD"]
[385925509,1758136247349,-400.0,0.00022273,2]
[385925511,1758136247358,-490.63,0.00022273,2]
[385925513,1758136247368,-400.0,0.00022273,2]
[385925515,1758136247377,-530.93,0.00022273,2]
[385925517,1758136247388,-400.0,0.00022273,2]
[385925518,1758136247401,-400.0,0.00022273,2]
[385925520,1758136247411,-400.0,0.00022273,2]
[385925522,1758136247420,-400.0,0.00022273,2]
[385925524,1758136247429,-400.0,0.00022273,2]
[385925526,1758136247439,-400.0,0.00022273,2]
[385925528,1758136247449,-205.84127731,0.00022273,2]
[385925529,1758136247459,-400.0,0.00022273,2]
[385925531,1758136247468,-400.0,0.00022273,2]
[385925533,1758136247477,-400.0,0.00022273,2]
[385925535,1758136247487,-436.11,0.00022273,2]
[385925537,1758136247496,-400.0,0.00022273,2]
[385925539,1758136247509,-400.0,0.00022273,2]
[385925541,1758136247518,-400.0,0.00022273,2]
[385925542,1758136247528,-400.0,0.00022273,2]
[385925544,1758136247537,-400.0,0.00022273,2]
[385925546,1758136247546,-465.08,0.00022273,2]
[385925548,1758136247555,-400.0,0.00022273,2]
[385925550,1758136247564,-400.0,0.00022273,2]
[385925552,1758136247576,-400.0,0.00022273,2]
[385925554,1758136247585,-400.0,0.00022273,2]
[385925555,1758136247594,-400.0,0.00022273,2]
[385925556,1758136247604,-400.0,0.00022273,2]
[385925557,1758136247613,-400.0,0.00022273,2]
[385925558,1758136247623,-416.56,0.00022273,2]
[385925559,1758136247632,-150.15683127,0.00022273,2]
[385925560,1758136247641,-400.0,0.00022273,2]
[385925561,1758136247650,-400.0,0.00022273,2]
[385925562,1758136247660,-402.47722279,0.00022273,2]
[385925563,1758136247669,-400.0,0.00022273,2]
[385925564,1758136247678,-400.0,0.00022273,2]
[385925565,1758136247687,-320.45668167,0.00022273,2]
[385925566,1758136247697,-400.0,0.00022273,2]
[385925567,1758136247706,-400.0,0.00022273,2]
[385925569,1758136247715,-547.43,0.00022273,2]
[385925571,1758136247724,-400.0,0.00022273,2]
[385925573,1758136247733,-404.47326515,0.00022273,2]
[385925575,1758136247742,-400.0,0.00022273,2]
[385925577,1758136247751,-477.82152345,0.00022273,2]
[385925579,1758136247760,-400.0,0.00022273,2]
[385925581,1758136247770,-400.0,0.00022273,2]
[385925583,1758136247779,-400.0,0.00022273,2]
[385925585,1758136247788,-400.0,0.00022273,2]
[385925587,1758136247797,-400.0,0.00022273,2]
[385925589,1758136247807,-400.0,0.00022273,2]
[385925591,1758136247815,-588.4,0.00022273,2]
[385925593,1758136247825,-400.0,0.00022273,2]
[385925595,1758136247834,-400.0,0.00022273,2]
[385925597,1758136247844,-372.07501661,0.00022273,2]
[385925599,1758136247853,-1198.21,0.00022273,2]
[385925601,1758136247863,-400.0,0.00022273,2]
[385925603,1758136247872,-569.33,0.00022273,2]
[385925605,1758136247883,-400.0,0.00022273,2]
[385925607,1758136247892,-400.0,0.00022273,2]
[385925609,1758136247901,-754.49,0.00022273,2]
[385925611,1758136247910,-439.03,0.00022273,2]
[385925613,1758136247920,-400.0,0.00022273,2]
[385925615,1758136247929,-408.32,0.00022273,2]
[385925617,1758136247938,-520.33,0.00022273,2]
[385925619,1758136247947,-400.0,0.00022273,2]
[385925621,1758136247956,-1051.19,0.00022273,2]
[385925623,1758136247966,-400.0,0.00022273,2]
[385925625,1758136247975,-400.0,0.00022273,2]
[385925627,1758136247984,-732.59,0.00022273,2]
[385925629,1758136247993,-400.0,0.00022273,2]
[385925631,1758136248002,-400.0,0.00022273,2]
[385925633,1758136248011,-410.52771647,0.00022273,2]
[385925635,1758136248021,-495.89,0.00022273,2]
[385925637,1758136248030,-482.84,0.00022273,2]
[385925639,1758136248040,-802.0,0.00022273,2]
[385925641,1758136248049,-400.0,0.00022273,2]
[385925642,1758136248058,-357.76821959,0.00022273,2]
[385925645,1758136248068,-400.0,0.00022273,2]
[385925646,1758136248078,-400.0,0.00022273,2]
[385925649,1758136248088,-410.39562253,0.00022273,2]
[385925651,1758136248097,-400.0,0.00022273,2]
[385925653,1758136248106,-276.21650459,0.00022273,2]
[385925655,1758136248116,-519.33,0.00022273,2]
[385925657,1758136248125,-400.0,0.00022273,2]
[385925659,1758136248136,-400.0,0.00022273,2]
[385925661,1758136248146,-201.87632458,0.00022273,2]
[385925663,1758136248155,-400.0,0.00022273,2]
[385925664,1758136248165,-400.0,0.00022273,2]
[385925667,1758136248175,-348.95400292,0.00022273,2]
[385925669,1758136248186,-400.0,0.00022273,2]
[385925671,1758136248196,-400.0,0.00022273,2]
[385925673,1758136248205,-400.0,0.00022273,2]
[385925675,1758136248215,-400.0,0.00022273,2]
[385925677,1758136248225,-424.54,0.00022273,2]
[385925679,1758136248234,-400.0,0.00022273,2]
[385925681,1758136248243,-400.0,0.00022273,2]
[385925683,1758136248253,-933.74,0.00022273,2]
[385925685,1758136248262,-628.05,0.00022273,2]
[385925687,1758136248271,-400.0,0.00022273,2]
[385925689,1758136248280,-400.0,0.00022273,2]
[385925691,1758136248289,-400.0,0.00022273,2]
[385925693,1758136248298,-400.0,0.00022273,2]
[385925695,1758136248309,-465.03,0.00022273,2]
[385925697,1758136248318,-400.0,0.00022273,2]
[385925699,1758136248327,-400.83,0.00022273,2]
[385925701,1758136248337,-400.0,0.00022273,2]
[385925703,1758136248346,-400.0,0.00022273,2]
[385925705,1758136248356,-400.0,0.00022273,2]
[385925707,1758136248365,-400.0,0.00022273,2]
[385925709,1758136248374,-409.00763745,0.00022273,2]
[385925710,1758136248386,-466.1,0.00022273,2]
[385925713,1758136248401,-400.0,0.00022273,2]
[385925715,1758136248410,-400.0,0.00022273,2]
[385925717,1758136248420,-400.0,0.00022273,2]
[385925719,1758136248430,-400.0,0.00022273,2]
[385925721,1758136248442,-585.96,0.00022273,2]
[385925722,1758136248452,-400.0,0.00022273,2]
[385925724,1758136248461,-400.0,0.00022273,2]
[385925726,1758136248472,-400.0,0.00022273,2]
[385925729,1758136248482,-400.0,0.00022273,2]
[385925730,1758136248491,-400.0,0.00022273,2]
[385925732,1758136248501,-493.31,0.00022273,2]
[385925735,1758136248511,-400.0,0.00022273,2]
[385925737,1758136248520,-400.0,0.00022273,2]
[385925739,1758136248531,-400.0,0.00022273,2]
[385925741,1758136248540,-907.1,0.00022273,2]
[385925743,1758136248549,-460.97,0.00022273,2]
[385925745,1758136248558,-508.35,0.00022273,2]
[385925747,1758136248568,-400.0,0.00022273,2]
[385925749,1758136248578,-400.0,0.00022273,2]
[385925751,1758136248587,-406.44968627,0.00022273,2]
[385925753,1758136248597,-400.0,0.00022273,2]
[385925755,1758136248606,-444.41,0.00022273,2]
[385925757,1758136248616,-400.0,0.00022273,2]
[385925759,1758136248625,-400.0,0.00022273,2]
[385925761,1758136248635,-400.0,0.00022273,2]
[385925763,1758136248644,-583.27,0.00022273,2]
[385925765,1758136248654,-783.48,0.00022273,2]
[385925767,1758136248663,-400.0,0.00022273,2]
[385925768,1758136248672,-371.39616913,0.00022273,2]
[385925770,1758136248682,-416.12,0.00022273,2]
[385925773,1758136248693,-411.93,0.00022273,2]
[385925775,1758136248702,-400.0,0.00022273,2]
[385925777,1758136248711,-400.0,0.00022273,2]
[385925779,1758136248720,-400.0,0.00022273,2]
[385925781,1758136248729,-400.0,0.00022273,2]
[385925783,1758136248739,-400.0,0.00022273,2]
[385925784,1758136248748,-400.0,0.00022273,2]
[385925786,1758136248758,-459.69,0.00022273,2]
[385925788,1758136248768,-430.75,0.00022273,2]
[385925790,1758136248778,-505.51,0.00022273,2]
[385925793,1758136248788,-400.0,0.00022273,2]
[385925794,1758136248798,-400.0,0.00022273,2]
[385925796,1758136248808,-400.0,0.00022273,2]
[385925799,1758136248819,-400.0,0.00022273,2]
[385925801,1758136248829,-400.0,0.00022273,2]
[385925803,1758136248838,-12634.62,0.00022273,2]
[385925804,1758136248848,-400.0,0.00022273,2]
[385925807,1758136248857,-400.0,0.00022273,2]
[385925809,1758136248867,-400.0,0.00022273,2]
[385925810,1758136248876,-845.47,0.00022273,2]
[385925812,1758136248888,-851.6,0.00022273,2]
[385925814,1758136248898,-400.0,0.00022273,2]
[385925816,1758136248908,-160.0,0.00022273,14]
[385925819,1758136248918,-160.0,0.00022273,14]
[385925820,1758136248928,-400.0,0.00022273,2]
[385925822,1758136248939,-475.45,0.00022273,2]
[385925824,1758136248949,-500.0,0.00022273,2]
[385925827,1758136248959,-820.18,0.00022273,2]
[385925829,1758136248969,-400.0,0.00022273,2]
[385925831,1758136248978,-1710.32,0.00022273,2]
[385925833,1758136248988,-400.0,0.00022273,2]
[385925835,1758136248998,-1896.06,0.00022273,2]
[385925837,1758136249008,-151.0,0.00022273,7]
[385925839,1758136249018,-777.7,0.00022273,2]
[385925841,1758136249027,-511.45,0.00022273,2]
[385925843,1758136249036,-1055.91,0.00022273,2]
[385925845,1758136249047,-400.0,0.00022273,2]
[385925847,1758136249056,-400.0,0.00022273,2]
[385925849,1758136249065,-3039.52,0.00022273,2]
[385925851,1758136249075,-606.73,0.00022273,2]
[385925853,1758136249084,-586.59,0.00022273,2]
[385925854,1758136249094,-181.019575,0.00022273,7]
[385925856,1758136249103,-181.019575,0.00022273,7]
[385925858,1758136249113,-814.52,0.00022273,2]
[385925860,1758136249123,-400.0,0.00022273,2]
[385925862,1758136249134,-300.227513,0.00022273,7]
[385925864,1758136249144,-181.019575,0.00022273,7]
[385925866,1758136249153,-884.98,0.00022273,2]
[385925868,1758136249163,-300.227513,0.00022273,7]
[385925870,1758136249173,-521.27587571,0.00022273,2]
[385925872,1758136249182,-181.019575,0.00022273,7]
[385925874,1758136249192,-479.7,0.00022273,2]
[385925876,1758136249201,-300.227513,0.00022273,7]
[385925878,1758136249211,-300.227513,0.00022273,7]
[385925880,1758136249221,-408.43810281,0.00022273,2]
[385925882,1758136249230,-400.0,0.00022273,2]
[385925884,1758136249240,-459.19,0.00022273,2]
[385925886,1758136249249,-400.0,0.00022273,2]
[385925888,1758136249258,-400.0,0.00022273,2]
[385925890,1758136249267,-400.0,0.00022273,2]
[385925892,1758136249277,-292.00630887,0.00022273,2]
[385925894,1758136249286,-400.0,0.00022273,2]
[385925896,1758136249295,-400.0,0.00022273,2]
[385925898,1758136249305,-440.04,0.00022273,2]
[385925900,1758136249313,-404.2,0.00022273,2]
[385925902,1758136249323,-666.29,0.00022273,2]
[385925904,1758136249332,-633.25,0.00022273,2]
[385925906,1758136249340,-400.0,0.00022273,2]
[385925908,1758136249350,-400.0,0.00022273,2]
[385925910,1758136249359,-433.4,0.00022273,2]
[385925912,1758136249367,-993.76,0.00022273,2]
[385925914,1758136249376,-278.42944,0.00022273,7]
[385925916,1758136249387,-528.62,0.00022273,2]
[385925918,1758136249399,-531.47,0.00022273,2]
[385925920,1758136249408,-591.57,0.00022273,2]
[385925922,1758136249417,-466.37,0.00022273,2]
[385925924,1758136249426,-400.0,0.00022273,2]
[385925926,1758136249435,-454.53,0.00022273,2]
[385925928,1758136249445,-400.0,0.00022273,2]
[385925930,1758136249457,-2301.42,0.00022273,2]
[385925932,1758136249466,-400.0,0.00022273,2]
[385925934,1758136249478,-570.26,0.00022273,2]
[385925936,1758136249488,-400.0,0.00022273,2]
[385925938,1758136249497,-1028.27,0.00022273,2]
[385925940,1758136249506,-151.0,0.00022273,7]
[385925942,1758136249515,-400.0,0.00022273,2]
[385925944,1758136249524,-404.19,0.00022273,2]
[385925946,1758136249533,-400.0,0.00022273,2]
[385925948,1758136249542,-400.0,0.00022273,2]
[385925950,1758136249551,-400.0,0.00022273,2]
[385925953,1758136249560,-400.0,0.00022273,2]
[385925954,1758136249570,-400.0,0.00022273,2]
[385925956,1758136249580,-2997.36,0.00022273,2]
[385925958,1758136249589,-400.0,0.00022273,2]
[385925960,1758136249599,-433.76,0.00022273,2]
[385925963,1758136249609,-400.0,0.00022273,2]
[385925965,1758136249618,-400.0,0.00022273,2]
[385925966,1758136249627,-1862.36,0.00022273,2]
[385925969,1758136249639,-400.0,0.00022273,2]
[385925971,1758136249648,-400.0,0.00022273,2]
[385925972,1758136249657,-400.0,0.00022273,2]
[385925974,1758136249666,-520.12,0.00022273,2]
[385925976,1758136249676,-400.0,0.00022273,2]
[385925978,1758136249686,-601.08,0.00022273,2]
[385925980,1758136249696,-467.01,0.00022273,2]
[385925982,1758136249705,-400.0,0.00022273,2]
[385925984,1758136249714,-400.0,0.00022273,2]
[385925986,1758136249724,-470.61,0.00022273,2]
[385925989,1758136249733,-406.4074506,0.00022273,2]
[385925991,1758136249743,-400.0,0.00022273,2]
[385925993,1758136249752,-400.0,0.00022273,2]
[385925995,1758136249762,-211.18594913,0.00022273,2]
[385925997,1758136249771,-590.68,0.00022273,2]
[385925998,1758136249781,-2362.3,0.00022273,2]
[385926001,1758136249790,-723.81,0.00022273,2]
[385926003,1758136249799,-1622.69,0.00022273,2]
[385926004,1758136249808,-325.66537148,0.00022273,2]
[385926006,1758136249818,-400.0,0.00022273,2]
[385926008,1758136249827,-463.92,0.00022273,2]
[385926010,1758136249837,-400.0,0.00022273,2]
[385926012,1758136249847,-400.0,0.00022273,2]
[385926014,1758136249856,-400.0,0.00022273,2]
[385926016,1758136249866,-400.0,0.00022273,2]
[385926018,1758136249875,-400.0,0.00022273,2]
[385926020,1758136249886,-400.0,0.00022273,2]
[385926022,1758136249895,-804.75,0.00022273,2]
[385926024,1758136249904,-400.0,0.00022273,2]
[385926026,1758136249913,-400.0,0.00022273,2]
[385926028,1758136249922,-406.65,0.00022273,2]
[385926030,1758136249931,-416.78,0.00022273,2]
[385926032,1758136249940,-686.88,0.00022273,2]
[385926034,1758136249950,-400.0,0.00022273,2]
[385926035,1758136249959,-400.0,0.00022273,2]
[385926036,1758136249969,-400.0,0.00022273,2]
[385926037,1758136249978,-400.0,0.00022273,2]
[385926038,1758136249987,-400.0,0.00022273,2]
[385926039,1758136249996,-400.0,0.00022273,2]
[385926040,1758136250006,-166.76613974,0.00022273,2]
[385926041,1758136250015,-1018.96,0.00022273,2]
[385926042,1758136250024,-686.5,0.00022273,2]
[385926044,1758136250033,-400.0,0.00022273,2]
[385926045,1758136250042,-400.0,0.00022273,2]
[385926047,1758136250052,-1503.39,0.00022273,2]
[385926049,1758136250062,-400.0,0.00022273,2]
[385926051,1758136250071,-10117.05,0.00022286,2]
[385926053,1758136250081,-151.0,0.00022327,7]
[385926055,1758136250090,-151.0,0.00022327,7]
[385926057,1758136250099,-232.94,0.00022327,2]
[385926059,1758136250109,-1680.0,0.00022353,2]
[385926061,1758136250119,-250.0,0.00022369,2]
[385926063,1758136250128,-1157.14,0.00022375,2]
[385926065,1758136250138,-150.0,0.00022377,4]
[385926067,1758136250147,-273.37374363,0.00022435,2]
[385926069,1758136250157,-400.0,0.00022465,2]
[385926071,1758136250166,-582.01,0.00022465,2]
[385926073,1758136250175,-745.68,0.00022465,2]
[385926075,1758136250183,-482.63,0.00022465,2]
[385926077,1758136250193,-312.80708289,0.00022465,2]
[385926079,1758136250202,-400.0,0.00022465,2]
[385926081,1758136250211,-494.82,0.00022465,2]
[385926083,1758136250220,-400.0,0.00022465,2]
[385926085,1758136250230,-400.0,0.00022465,2]
[385926087,1758136250238,-400.0,0.00022465,2]
[385926089,1758136250248,-400.0,0.00022465,2]
[385926091,1758136250258,-400.0,0.00022465,2]
[385926093,1758136250267,-400.0,0.00022465,2]
[385926095,1758136250276,-400.0,0.00022465,2]
[385926097,1758136250286,-1751.24,0.00022465,2]
[385926099,1758136250295,-250.0,0.00022472,2]
[385926101,1758136250304,-150.0,0.00022472,2]
[385926103,1758136250313,-150.0,0.00022486,2]
[385926105,1758136250322,-284.99243548,0.00022495,2]
[385926107,1758136250331,-1000.0,0.00022521,2]
[385926109,1758136250341,-511.93698364,0.00022521,2]
[385926111,1758136250350,-1000.0,0.00022521,2]
[385926113,1758136250359,-1000.0,0.00022521,2]
[385926115,1758136250368,-1000.0,0.00022521,2]
[385926117,1758136250377,-1000.0,0.00022521,2]
[385926119,1758136250386,-1000.0,0.00022521,2]
[385926122,1758136250399,-1000.0,0.00022521,2]
[385926124,1758136250409,-1000.0,0.00022521,2]
[385926126,1758136250419,-1000.0,0.00022521,2]
[385926128,1758136250429,-1000.0,0.00022521,2]
[385926130,1758136250441,-433.64673218,0.00022521,2]
[385926132,1758136250451,-1000.0,0.00022521,2]
[385926134,1758136250461,-200.0,0.00022521,2]
[385926136,1758136250473,-500.0,0.00022521,2]
[385926138,1758136250484,-450.0,0.00022521,2]
[385926140,1758136250493,-500.0,0.00022521,2]
[385926142,1758136250502,-500.0,0.00022521,2]
[385926144,1758136250512,-500.0,0.00022521,2]
[385926146,1758136250521,-150.0,0.00022521,2]
[385926148,1758136250530,-500.0,0.00022521,2]
[385926150,1758136250539,-605.0,0.00022521,2]
[385926152,1758136250548,-500.0,0.00022521,2]
[385926154,1758136250558,-2442.0,0.00022521,2]
[385926156,1758136250568,-500.0,0.00022535,2]
[385926158,1758136250577,-595.0,0.00022535,2]
[385926160,1758136250586,-500.0,0.00022535,2]
[385926162,1758136250595,-500.0,0.00022535,2]
[385926164,1758136250604,-400.0,0.00022546,2]
[385926165,1758136250613,-415.4,0.00022546,2]
[385926167,1758136250623,-400.0,0.00022546,2]
[385926169,1758136250632,-400.0,0.00022546,2]
[385926171,1758136250643,-400.0,0.00022546,2]
[385926173,1758136250652,-898.21,0.00022546,2]
[385926175,1758136250662,-401.69,0.00022546,2]
[385926178,1758136250674,-553.35,0.00022546,2]
[385926180,1758136250683,-1177.51,0.00022546,2]
[385926182,1758136250692,-150.0,0.00022547,2]
[385926184,1758136250701,-150.0,0.00022547,2]
[385926185,1758136250710,-500.0,0.00022547,2]
[385926187,1758136250719,-175.99489355,0.00022547,2]
[385926190,1758136250729,-500.0,0.00022547,2]
[385926192,1758136250738,-150.0,0.00022547,2]
[385926193,1758136250747,-500.0,0.00022547,2]
[385926195,1758136250757,-400.0,0.00022547,2]
[385926197,1758136250766,-400.0,0.00022547,2]
[385926199,1758136250775,-400.0,0.00022547,2]
[385926202,1758136250785,-152.644779,0.00022547,2]
[385926204,1758136250795,-160.272593,0.00022547,2]
[385926206,1758136250804,-411.61619795,0.00022547,2]
[385926208,1758136250813,-400.0,0.00022547,2]
[385926210,1758136250822,-400.0,0.00022547,2]
[385926212,1758136250831,-400.0,0.00022547,2]
[385926214,1758136250840,-487.3,0.00022547,2]
[385926216,1758136250849,-400.0,0.00022547,2]
[385926218,1758136250859,-400.0,0.00022547,2]
[385926220,1758136250868,-400.0,0.00022547,2]
[385926222,1758136250877,-619.0,0.00022547,2]
[385926224,1758136250888,-400.0,0.00022547,2]
[385926226,1758136250897,-400.0,0.00022547,2]
[385926227,1758136250907,-737.53,0.00022547,2]
[385926229,1758136250916,-443.81,0.00022547,2]
[385926230,1758136250925,-400.0,0.00022547,2]
[385926232,1758136250935,-400.0,0.00022547,2]
[385926246,1758136251052,-493.3,0.00022547,2]
[385926248,1758136251064,-400.0,0.00022547,2]
[385926250,1758136251075,-400.0,0.00022547,2]
[385926252,1758136251084,-620.66,0.00022547,2]
[385926254,1758136251094,-600.69,0.00022547,2]
[385926256,1758136251103,-361.66835964,0.00022547,2]
[385926258,1758136251113,-522.27,0.00022547,2]
[385926260,1758136251122,-400.0,0.00022547,2]
[385926262,1758136251132,-400.0,0.00022547,2]
[385926264,1758136251145,-400.0,0.00022547,2]
[385926266,1758136251155,-409.05,0.00022547,2]
[385926268,1758136251164,-431.09,0.00022547,2]
[385926270,1758136251174,-400.0,0.00022547,2]
[385926272,1758136251183,-400.0,0.00022547,2]
[385926274,1758136251192,-400.0,0.00022547,2]
[385926276,1758136251202,-400.0,0.00022547,2]
[385926278,1758136251212,-508.41,0.00022547,2]
[385926280,1758136251222,-400.0,0.00022547,2]
[385926282,1758136251231,-400.0,0.00022547,2]
[385926284,1758136251241,-458.23,0.00022547,2]
[385926286,1758136251251,-1664.17,0.00022547,2]
[385926288,1758136251260,-413.13,0.00022547,2]
[385926290,1758136251270,-400.0,0.00022547,2]
[385926292,1758136251280,-400.0,0.00022547,2]
[385926294,1758136251290,-400.0,0.00022547,2]
[385926296,1758136251300,-400.0,0.00022547,2]
[385926298,1758136251309,-530.08249202,0.00022547,2]
[385926300,1758136251318,-530.6,0.00022547,2]
[385926302,1758136251327,-400.0,0.00022547,2]
[385926304,1758136251336,-400.0,0.00022547,2]
[385926306,1758136251345,-400.0,0.00022547,2]
[385926308,1758136251355,-400.0,0.00022547,2]
[385926310,1758136251364,-400.0,0.00022547,2]
[385926312,1758136251374,-400.0,0.00022547,2]
[385926314,1758136251383,-400.0,0.00022547,2]
[385926316,1758136251401,-582.21,0.00022547,2]
[385926318,1758136251411,-400.0,0.00022547,2]
[385926320,1758136251420,-400.0,0.00022547,2]
[385926322,1758136251430,-400.0,0.00022547,2]
[385926324,1758136251439,-400.0,0.00022547,2]
[385926326,1758136251448,-400.0,0.00022547,2]
[385926328,1758136251458,-400.0,0.00022547,2]
[385926330,1758136251467,-400.0,0.00022547,2]
[385926332,1758136251476,-400.0,0.00022547,2]
[385926334,1758136251485,-182.1618397,0.00022547,2]
[385926336,1758136251494,-490.63,0.00022547,2]
[385926338,1758136251504,-400.0,0.00022547,2]
[385926340,1758136251514,-530.93,0.00022547,2]
[385926342,1758136251524,-400.0,0.00022547,2]
[385926344,1758136251534,-400.0,0.00022547,2]
[385926346,1758136251544,-400.0,0.00022547,2]
[385926348,1758136251554,-400.0,0.00022547,2]
[385926350,1758136251564,-400.0,0.00022547,2]
[385926352,1758136251573,-400.0,0.00022547,2]
[385926354,1758136251583,-400.0,0.00022547,2]
[385926356,1758136251593,-400.0,0.00022547,2]
[385926358,1758136251602,-400.0,0.00022547,2]
[385926360,1758136251612,-436.11,0.00022547,2]
[385926362,1758136251622,-400.0,0.00022547,2]
[385926364,1758136251632,-515.78462124,0.00022547,2]
[385926366,1758136251644,-400.0,0.00022547,2]
[385926368,1758136251655,-400.0,0.00022547,2]
[385926370,1758136251665,-151.0,0.00022547,7]
[385926372,1758136251674,-400.0,0.00022547,2]
[385926374,1758136251684,-465.08,0.00022547,2]
[385926376,1758136251693,-400.0,0.00022547,2]
[385926378,1758136251703,-400.0,0.00022547,2]
[385926380,1758136251713,-400.0,0.00022547,2]
[385926382,1758136251723,-400.0,0.00022547,2]
[385926384,1758136251732,-400.0,0.00022547,2]
[385926386,1758136251742,-400.0,0.00022547,2]
[385926388,1758136251752,-400.0,0.00022547,2]
[385926390,1758136251762,-151.0,0.00022547,7]
[385926393,1758136251772,-416.56,0.00022547,2]
[385926395,1758136251783,-400.0,0.00022547,2]
[385926397,1758136251792,-400.0,0.00022547,2]
[385926399,1758136251802,-400.0,0.00022547,2]
[385926401,1758136251815,-151.0,0.00022547,7]
[385926403,1758136251827,-151.0,0.00022547,7]
[385926405,1758136251836,-151.0,0.00022547,7]
[385926407,1758136251845,-151.0,0.00022547,7]
[385926409,1758136251855,-151.0,0.00022547,7]
[385926411,1758136251869,-400.0,0.00022547,2]
[385926413,1758136251882,-151.0,0.00022547,7]
[385926415,1758136251895,-400.0,0.00022547,2]
[385926417,1758136251905,-194.36788507,0.00022547,2]
[385926419,1758136251915,-400.0,0.00022547,2]
[385926421,1758136251924,-547.43,0.00022547,2]
[385926423,1758136251934,-409.33842163,0.00022547,2]
[385926425,1758136251944,-400.0,0.00022547,2]
[385926427,1758136251953,-400.0,0.00022547,2]
[385926429,1758136251963,-400.0,0.00022547,2]
[385926431,1758136251973,-400.0,0.00022547,2]
[385926433,1758136251982,-400.0,0.00022547,2]
[385926435,1758136251992,-588.4,0.00022547,2]
[385926437,1758136252001,-400.0,0.00022547,2]
[385926439,1758136252011,-400.0,0.00022547,2]
[385926441,1758136252020,-1198.21,0.00022547,2]
[385926443,1758136252029,-400.0,0.00022547,2]
[385926445,1758136252038,-569.33,0.00022547,2]
[385926447,1758136252048,-400.0,0.00022547,2]
[385926449,1758136252057,-400.0,0.00022547,2]
[385926451,1758136252068,-754.49,0.00022547,2]
[385926454,1758136252078,-439.03,0.00022547,2]
[385926456,1758136252087,-400.0,0.00022547,2]
[385926457,1758136252097,-408.32,0.00022547,2]
[385926459,1758136252107,-520.33,0.00022547,2]
[385926462,1758136252117,-412.69433966,0.00022547,2]
[385926463,1758136252127,-1051.19,0.00022547,2]
[385926464,1758136252138,-151.0,0.00022547,7]
[385926465,1758136252148,-400.0,0.00022547,2]
[385926466,1758136252157,-400.0,0.00022547,2]
[385926467,1758136252167,-732.59,0.00022547,2]
[385926468,1758136252177,-495.41244037,0.00022547,2]
[385926469,1758136252187,-401.1753528,0.00022547,2]
[385926470,1758136252197,-495.89,0.00022547,2]
[385926471,1758136252207,-482.84,0.00022547,2]
[385926472,1758136252217,-802.0,0.00022547,2]
[385926474,1758136252226,-400.0,0.00022547,2]
[385926476,1758136252236,-400.0,0.00022547,2]
[385926478,1758136252246,-498.43041201,0.00022547,2]
[385926480,1758136252256,-400.0,0.00022547,2]
[385926482,1758136252265,-519.33,0.00022547,2]
[385926484,1758136252275,-400.0,0.00022547,2]